bitfinex/quotes_ETHUSD_20250604
["timestamp","ask_amount","ask_price","bid_price","bid_amount"]
[1749026062667,1.0102,2638.2,2637.8,10.0]
[1749026062885,1.0102,2638.2,2637.2,1.0551]
[1749026063086,1.0102,2638.2,2637.1,10.0]
[1749026063287,1.0102,2638.2,2637.2,10.0]
[1749026063465,1.0102,2638.2,2637.4,10.0]
[1749026063652,1.0102,2638.2,2637.5,10.0]
[1749026063846,1.0102,2638.2,2637.7,10.0]
[1749026064076,1.0102,2638.2,2637.0,7.148925]
[1749026064265,1.0102,2638.2,2637.2,17.148925]
[1749026064488,1.0102,2638.2,2637.4,10.0]
[1749026064689,1.0102,2638.2,2637.5,10.0]
[1749026064903,1.0102,2638.2,2637.7,10.0]
[1749026065064,1.0102,2638.2,2637.2,8.0]
[1749026065266,1.0102,2638.2,2637.4,17.148925]
[1749026065468,1.0102,2638.2,2637.7,7.148925]
[1749026065656,1.0102,2638.2,2636.8,0.28856083]
[1749026065994,1.0102,2638.2,2637.4,8.0]
[1749026066293,1.0102,2638.2,2637.7,8.0]
[1749026066474,1.0102,2638.2,2637.9,10.0]
[1749026066793,1.0102,2638.2,2637.7,8.0]
[1749026066960,1.0102,2638.2,2637.0,8.0]
[1749026067154,1.0102,2638.2,2637.2,8.0]
[1749026067356,1.0102,2638.2,2637.6,8.0]
[1749026067551,1.0102,2638.2,2636.9,7.148925]
[1749026067757,1.0102,2638.2,2637.2,8.0]
[1749026067958,1.0102,2638.2,2637.6,8.0]
[1749026068199,1.0102,2638.2,2636.8,0.28856083]
[1749026068362,1.0418,2638.1,2637.1,7.148925]
[1749026068706,1.0418,2638.1,2637.5,8.0]
[1749026068920,1.0418,2638.1,2637.8,8.0]
[1749026069117,1.0418,2638.1,2637.0,8.0]
[1749026069293,1.0418,2638.1,2637.1,7.148925]
[1749026069481,1.0418,2638.1,2637.3,17.148925]
[1749026069482,0.9871,2638.0,2637.3,17.148925]
[1749026069680,0.9871,2638.0,2637.4,10.0]
[1749026069926,0.9871,2638.0,2637.6,10.0]
[1749026070100,0.9871,2638.0,2637.3,10.0]
[1749026070410,0.9871,2638.0,2637.4,10.0]
[1749026070616,0.9871,2638.0,2637.6,10.0]
[1749026070820,0.9871,2638.0,2637.7,10.0]
[1749026070983,1.618238,2638.0,2637.3,7.148925]
[1749026071194,0.9871,2638.0,2637.0,10.0]
[1749026071402,1.8161,2638.0,2637.2,7.148925]
[1749026071639,1.8161,2638.0,2637.1,7.148925]
[1749026071955,1.8161,2638.0,2637.0,18.0]
[1749026072095,1.8161,2638.0,2637.4,8.0]
[1749026072293,1.8161,2638.0,2637.5,7.148925]
[1749026072492,2.46471,2638.0,2636.8,0.50463505]
[1749026072728,1.8161,2638.0,2637.0,8.0]
[1749026072907,1.8161,2638.0,2637.4,8.0]
[1749026073113,1.8161,2638.0,2637.7,8.0]
[1749026073421,1.8161,2638.0,2637.2,8.0]
[1749026073627,1.8161,2638.0,2637.1,7.148925]
[1749026073628,1.8161,2638.0,2637.5,7.148925]
[1749026073835,1.8161,2638.0,2637.7,8.0]
[1749026074039,1.0321,2637.9,2637.2,8.0]
[1749026074217,1.0321,2637.9,2637.5,8.0]
[1749026074420,1.0321,2637.9,2637.4,8.0]
[1749026074623,1.0321,2637.9,2637.2,8.0]
[1749026074816,1.0321,2637.9,2637.3,7.148925]
[1749026075134,1.0321,2637.9,2637.6,10.0]
[1749026075330,1.0321,2637.9,2637.1,8.0]
[1749026075539,1.0321,2637.9,2637.5,8.0]
[1749026075850,8.22353278,2639.6,2636.8,0.0878]
[1749026075851,1.1017,2638.6,2637.1,0.0878]
[1749026076044,0.829,2638.8,2637.6,8.84828487]
[1749026076202,0.829,2638.8,2637.9,8.0]
[1749026076403,0.829,2638.8,2638.1,10.0]
[1749026076608,0.829,2638.8,2638.0,10.0]
[1749026076854,0.829,2638.8,2638.1,10.0]
[1749026077023,0.829,2638.8,2638.0,10.0]
[1749026077342,0.829,2638.8,2637.9,8.0]
[1749026077343,0.829,2638.8,2638.2,10.0]
[1749026077839,0.829,2638.8,2638.0,10.0]
[1749026078023,0.829,2638.8,2638.2,10.0]
[1749026078218,0.829,2638.8,2638.0,10.0]
[1749026078448,0.829,2638.8,2638.2,10.0]
[1749026078781,0.829,2638.8,2638.2,8.0]
[1749026078927,1.0742,2638.8,2638.3,7.148925]
[1749026079131,1.0742,2638.8,2638.6,8.0]
[1749026079327,1.0742,2638.8,2638.0,8.0]
[1749026079548,1.0742,2638.8,2638.4,7.148925]
[1749026079767,1.0742,2638.8,2638.7,10.0]
[1749026079971,1.0742,2638.8,2638.7,7.148925]
[1749026080259,1.9032,2639.0,2638.7,10.0]
[1749026080469,1.9032,2639.0,2638.6,10.0]
[1749026080632,1.9032,2639.0,2638.8,10.0]
[1749026080844,1.9032,2639.0,2638.6,10.0]
[1749026081171,1.0742,2639.2,2638.8,15.148925]
[1749026088171,1.0742,2639.2,2638.7,5.447808]
[1749026088372,1.0742,2639.2,2638.8,5.447808]
[1749026088578,1.0742,2639.2,2638.5,5.447808]
[1749026089280,1.0742,2639.2,2638.0,0.41215047]
[1749026089477,1.0742,2639.2,2638.1,10.0]
[1749026089680,1.0742,2639.2,2638.3,10.0]
[1749026090070,1.0742,2639.2,2638.5,10.0]
[1749026094837,1.0165,2638.8,2638.6,8.0]
[1749026095062,1.0165,2638.8,2638.3,18.0]
[1749026095203,1.0165,2638.8,2638.7,8.0]
[1749026095397,1.0165,2638.8,2638.2,1.04121505]
[1749026095626,1.0165,2638.8,2638.4,10.0]
[1749026097036,1.0165,2638.8,2637.9,0.4361344]
[1749026097244,1.0165,2638.8,2638.3,8.0]
[1749026097560,1.0165,2638.8,2637.9,0.4361344]
[1749026097701,1.0165,2638.8,2638.1,8.0]
[1749026097900,1.0165,2638.8,2638.4,8.0]
[1749026098113,1.0165,2638.8,2638.2,1.8]
[1749026098324,1.0165,2638.8,2638.1,8.0]
[1749026098527,1.0165,2638.8,2638.5,8.0]
[1749026098720,1.0165,2638.8,2638.1,8.0]
[1749026098928,1.0165,2638.8,2638.3,8.0]
[1749026099123,1.0165,2638.8,2637.9,0.4361344]
[1749026099319,1.0165,2638.8,2638.1,8.0]
[1749026099635,1.0165,2638.8,2638.2,1.8]
[1749026099820,1.0165,2638.8,2637.9,8.0]
[1749026100019,1.0165,2638.8,2638.3,8.0]
[1749026100348,1.1048,2639.0,2638.7,8.0]
[1749026100524,1.1048,2639.0,2638.8,18.0]
[1749026101619,1.1048,2639.0,2638.8,8.0]
[1749026103320,1.1375,2638.8,2638.0,0.2152]
[1749026103594,1.1375,2638.8,2637.7,0.2152]
[1749026103730,0.55,2638.7,2637.4,0.2152]
[1749026103920,0.55,2638.7,2637.6,8.0]
[1749026104167,1.1149,2638.6,2637.4,0.2152]
[1749026104460,1.1149,2638.6,2637.7,7.660878]
[1749026104665,1.1149,2638.6,2637.5,10.0]
[1749026104822,1.1149,2638.6,2637.6,8.0]
[1749026105026,1.1149,2638.6,2637.8,8.0]
[1749026105226,1.1149,2638.6,2637.6,10.0]
[1749026105462,1.1149,2638.6,2637.7,8.0]
[1749026105836,1.1149,2638.6,2637.5,1.43367047]
[1749026106043,1.1149,2638.6,2637.5,0.41215047]
[1749026106470,1.1149,2638.6,2637.7,8.0]
[1749026106832,1.1149,2638.6,2637.5,0.41215047]
[1749026107229,1.1149,2638.6,2637.7,8.0]
[1749026107463,1.1149,2638.6,2637.4,0.2152]
[1749026107464,1.1149,2638.6,2637.6,8.0]
[1749026107649,1.1149,2638.6,2637.6,1.82152]
[1749026107830,1.1149,2638.6,2637.6,8.0]
[1749026108031,1.1149,2638.6,2637.4,0.2152]
[1749026108581,1.1149,2638.6,2637.8,8.0]
[1749026108897,1.1149,2638.6,2637.6,8.0]
[1749026109089,1.1149,2638.6,2637.4,0.2152]
[1749026109241,1.1149,2638.6,2637.7,10.0]
[1749026109432,1.1149,2638.6,2637.8,1.8]
[1749026109636,1.1149,2638.6,2637.7,10.0]
[1749026109880,1.1149,2638.6,2637.4,0.2152]
[1749026110096,1.1149,2638.6,2637.8,8.0]
[1749026110285,1.1149,2638.6,2637.6,8.0]
[1749026110575,1.1149,2638.6,2637.4,0.2152]
[1749026110776,1.1149,2638.6,2637.6,8.0]
[1749026110941,1.1149,2638.6,2637.7,1.8]
[1749026111130,1.1149,2638.6,2637.6,8.0]
[1749026111339,1.1149,2638.6,2637.7,10.0]
[1749026111537,1.1149,2638.6,2637.9,10.0]
[1749026111747,1.1149,2638.6,2637.9,7.864478]
[1749026111977,1.1149,2638.6,2637.4,0.2152]
[1749026112152,1.1149,2638.6,2637.8,8.0]
[1749026112354,1.1149,2638.6,2637.9,7.938478]
[1749026112661,1.1149,2638.6,2637.6,8.0]
[1749026112862,1.1149,2638.6,2637.9,8.0]
[1749026113073,1.1149,2638.6,2637.7,1.8]
[1749026113237,1.1149,2638.6,2637.6,8.0]
[1749026113780,1.1149,2638.6,2637.8,8.0]
[1749026113953,1.1149,2638.6,2637.6,8.0]
[1749026114154,1.1149,2638.6,2637.4,0.2152]
[1749026114356,1.1149,2638.6,2637.6,8.0]
[1749026114538,1.1149,2638.6,2637.7,1.8]
[1749026114739,1.1327,2638.4,2637.6,8.0]
[1749026114967,1.1327,2638.4,2637.4,0.2152]
[1749026115274,1.1327,2638.4,2637.8,8.0]
[1749026115478,1.1327,2638.4,2637.5,10.0]
[1749026115689,1.1327,2638.4,2637.7,10.0]
[1749026115886,1.1327,2638.4,2637.7,1.8]
[1749026116183,1.1327,2638.4,2637.4,0.2152]
[1749026116407,1.1327,2638.4,2637.6,8.0]
[1749026116543,1.1327,2638.4,2637.4,0.2152]
[1749026116738,1.1327,2638.4,2637.4,8.0]
[1749026117049,1.1327,2638.4,2637.2,8.0]
[1749026117261,1.0998,2638.2,2637.5,8.0]
[1749026117579,1.0998,2638.2,2637.3,1.8]
[1749026117872,1.0998,2638.2,2637.1,10.0]
[1749026118189,1.0998,2638.2,2637.2,10.0]
[1749026118473,1.0998,2638.2,2637.4,10.0]
[1749026119471,1.0806,2638.1,2637.3,8.0]
[1749026119874,1.0806,2638.1,2637.1,0.41215047]
[1749026120088,1.0806,2638.1,2637.5,8.0]
[1749026120376,1.0806,2638.1,2637.3,8.0]
[1749026120538,1.0806,2638.1,2637.1,0.41215047]
[1749026120539,1.0806,2638.1,2637.4,1.8]
[1749026120882,1.0806,2638.1,2637.4,10.0]
[1749026121481,1.0806,2638.1,2637.6,10.0]
[1749026127179,1.0809,2638.4,2637.9,8.0]
[1749026127383,1.0809,2638.8,2638.2,10.0]
[1749026127538,1.0809,2638.8,2638.4,8.0]
[1749026128139,1.0809,2638.8,2638.2,1.8]
[1749026128351,1.0809,2638.8,2638.1,0.2152]
[1749026128551,1.0809,2638.8,2638.3,8.0]
[1749026129160,1.0809,2638.8,2638.4,10.0]
[1749026129576,1.0809,2638.8,2638.3,8.0]
[1749026129894,1.0809,2638.8,2638.4,10.0]
[1749026130059,1.0809,2638.8,2638.3,8.0]
[1749026130264,1.0809,2638.8,2638.4,1.8]
[1749026130572,1.0809,2638.8,2638.5,8.0]
[1749026130775,1.0809,2638.8,2638.0,8.0]
[1749026130964,1.0809,2638.8,2638.3,10.0]
[1749026132090,1.0809,2638.8,2638.3,8.166277]
[1749026132295,1.0809,2638.8,2637.7,10.0]
[1749026132481,1.0809,2638.8,2638.1,10.0]
[1749026133205,1.0809,2638.8,2638.0,8.0]
[1749026133708,1.0809,2638.8,2638.2,8.0]
[1749026133895,1.0809,2638.8,2638.5,10.0]
[1749026134295,0.00234419,2638.9,2638.8,8.0]
[1749026134515,0.00234419,2638.9,2638.3,10.0]
[1749026134679,0.00234419,2638.9,2638.5,10.0]
[1749026134884,0.00234419,2638.9,2638.7,10.0]
[1749026135696,0.00234419,2638.9,2638.8,8.0]
[1749026136196,0.00234419,2638.9,2638.4,1.03082]
[1749026136393,0.00234419,2638.9,2638.8,8.0]
[1749026136599,0.00234419,2638.9,2638.2,0.3082]
[1749026136797,0.00234419,2638.9,2638.5,10.0]
[1749026137122,0.00234419,2638.9,2638.7,10.0]
[1749026139396,0.00234419,2638.9,2638.4,8.0]
[1749026139589,0.00234419,2638.9,2638.6,20.0]
[1749026139791,0.00234419,2638.9,2638.6,10.0]
[1749026148251,0.00234419,2638.9,2638.8,10.0]
[1749026148857,0.00024394,2638.9,2638.8,10.0]
[1749026149052,0.00024394,2638.9,2638.8,18.0]
[1749026149267,0.00024394,2638.9,2638.8,18.42988418]
[1749026151662,1.1758,2639.4,2638.8,1.07468572]
[1749026151870,1.1662,2639.6,2639.0,18.64480154]
[1749026152039,1.1662,2639.6,2639.0,0.64480154]
[1749026152852,1.1662,2639.6,2639.1,10.0]
[1749026153053,1.1662,2639.6,2639.3,10.0]
[1749026153255,1.1662,2639.6,2639.5,0.64480154]
[1749026153457,1.1662,2639.6,2639.0,0.64480154]
[1749026155158,1.1662,2639.6,2639.1,10.0]
[1749026155332,1.1662,2639.6,2639.2,0.64480154]
[1749026155532,1.1662,2639.6,2639.0,0.64480154]
[1749026155768,1.1662,2639.6,2639.1,10.0]
[1749026155934,1.1662,2639.6,2639.2,0.64480154]
[1749026156268,1.1662,2639.6,2639.0,0.64480154]
[1749026156476,1.1662,2639.6,2639.2,0.64480154]
[1749026156769,1.1662,2639.6,2639.5,0.64480154]
[1749026156967,1.1662,2639.6,2638.9,0.3082]
[1749026156968,1.1662,2639.6,2639.0,0.64480154]
[1749026157176,1.1662,2639.6,2639.1,10.0]
[1749026157383,1.1662,2639.6,2639.2,0.64480154]
[1749026157582,1.1171,2639.8,2639.0,0.64480154]
[1749026157738,1.1171,2639.8,2639.4,0.64480154]
[1749026157948,0.02,2639.9,2639.6,8.0]
[1749026158171,0.02,2639.9,2639.7,0.64480154]
[1749026158343,0.02,2639.9,2639.5,0.64480154]
[1749026158545,0.02,2639.9,2639.4,0.64480154]
[1749026158741,1.1534,2639.8,2639.1,0.3082]
[1749026159060,1.1534,2639.8,2639.3,8.0]
[1749026159262,1.1534,2639.8,2639.7,8.0]
[1749026159585,1.1534,2639.8,2639.5,8.0]
[1749026159783,1.1534,2639.8,2639.6,10.0]
[1749026160351,1.1534,2639.8,2639.5,8.0]
[1749026160560,1.1534,2639.8,2639.3,8.0]
[1749026160753,1.1534,2639.8,2638.7,0.3082]
[1749026161080,1.1534,2639.8,2639.1,8.0]
[1749026161281,1.1534,2639.8,2639.2,10.0]
[1749026161483,1.1534,2639.8,2639.3,8.0]
[1749026161658,1.1534,2639.8,2639.6,10.0]
[1749026161979,1.1534,2639.8,2639.4,10.0]
[1749026163193,1.1534,2639.8,2638.9,0.41215047]
[1749026163194,1.1534,2639.8,2638.9,0.71995047]
[1749026163370,1.1534,2639.8,2639.3,8.0]
[1749026163558,1.1534,2639.8,2639.5,8.0]
[1749026163738,1.1534,2639.8,2639.1,8.0]
[1749026163942,1.1534,2639.8,2639.3,8.0]
[1749026164181,1.1534,2639.8,2639.1,1.16519291]
[1749026164363,1.1534,2639.8,2639.4,9.981158]
[1749026165144,1.1534,2639.8,2638.7,0.3078]
[1749026165450,1.1534,2639.8,2639.0,10.0]
[1749026167785,1.1534,2639.8,2639.3,8.0]
[1749026167956,1.1534,2639.8,2639.5,8.0]
[1749026168139,1.1534,2639.8,2639.2,8.0]
[1749026168341,1.1534,2639.8,2639.3,10.0]
[1749026168545,1.35324,2639.8,2639.0,0.603258]
[1749026168981,0.825,2639.7,2639.2,8.0]
[1749026169183,1.1458,2639.6,2639.2,8.0]
[1749026169780,1.1458,2639.6,2639.0,0.603258]
[1749026169979,1.1458,2639.6,2639.2,8.0]
[1749026170286,1.1458,2639.6,2639.4,8.0]
[1749026170479,1.1458,2639.6,2639.0,1.01540847]
[1749026170684,1.1458,2639.6,2639.4,8.0]
[1749026170883,1.1458,2639.6,2639.0,1.01540847]
[1749026171075,1.1458,2639.6,2639.4,8.0]
[1749026171247,1.1458,2639.6,2639.2,8.0]
[1749026171449,1.1458,2639.6,2639.4,28.0]
[1749026171790,1.1458,2639.6,2639.4,18.0]
[1749026171960,1.1458,2639.6,2639.5,10.0]
[1749026175496,1.1458,2639.6,2639.3,8.0]
[1749026175895,1.1458,2639.6,2639.1,20.0]
[1749026176099,1.1458,2639.6,2639.4,8.0]
[1749026176406,1.1458,2639.6,2639.2,10.0]
[1749026176611,1.1458,2639.6,2639.4,8.0]
[1749026176910,1.1458,2639.6,2639.2,8.0]
[1749026177072,1.1458,2639.6,2639.0,0.603258]
[1749026177274,1.1458,2639.6,2639.4,8.0]
[1749026177474,1.1458,2639.6,2639.0,0.603258]
[1749026177708,1.1458,2639.6,2639.4,8.0]
[1749026177881,1.1458,2639.6,2639.0,0.603258]
[1749026178082,1.1458,2639.6,2639.4,8.0]
[1749026178282,1.1458,2639.6,2639.2,8.0]
[1749026178481,1.1458,2639.6,2639.1,8.30721618]
[1749026178689,1.1458,2639.6,2639.1,10.0]
[1749026179615,1.1458,2639.6,2639.3,20.0]
[1749026179804,1.1458,2639.6,2639.3,10.0]
[1749026180617,1.1458,2639.6,2639.4,8.0]
[1749026180912,1.1647,2639.8,2639.6,8.0]
[1749026181118,1.1647,2639.8,2639.5,10.0]
[1749026181287,0.02,2639.9,2639.6,8.0]
[1749026181487,0.02,2639.9,2639.8,18.0]
[1749026184476,0.02,2639.9,2639.8,17.562023]
[1749026191514,0.02,2639.9,2639.8,11.134924]
[1749026192644,0.02,2639.9,2639.8,2.00019155]
[1749026192830,0.02,2639.9,2639.4,10.0]
[1749026192831,1.2043,2639.8,2639.4,10.0]
[1749026193042,1.2043,2639.8,2639.2,0.31722243]
[1749026193043,1.2043,2639.8,2639.2,10.0]
[1749026193353,1.2043,2639.8,2639.4,20.0]
[1749026193653,0.02,2639.9,2639.6,10.0]
[1749026194715,0.02,2639.9,2639.8,10.0]
[1749026194921,0.02,2639.9,2639.8,18.0]
[1749026200031,1.1543,2640.3,2639.5,0.76835047]
[1749026200277,1.1543,2640.3,2639.8,10.0]
[1749026200473,1.1543,2640.3,2639.5,0.76835047]
[1749026200654,1.1543,2640.3,2639.8,10.0]
[1749026200851,1.1543,2640.3,2639.5,0.76835047]
[1749026201051,1.1543,2640.3,2639.7,8.0]
[1749026201246,1.1543,2640.3,2639.5,0.76835047]
[1749026201455,1.1543,2640.3,2639.7,8.0]
[1749026201638,1.1543,2640.3,2639.5,0.76835047]
[1749026201980,1.1543,2640.3,2639.8,10.0]
[1749026202344,1.1543,2640.3,2639.5,0.3562]
[1749026202571,1.1543,2640.3,2639.9,8.0]
[1749026202767,1.1543,2640.3,2639.6,10.0]
[1749026202984,1.1543,2640.3,2639.9,8.0]
[1749026203173,1.1543,2640.3,2639.8,8.0]
[1749026203378,1.1543,2640.3,2639.6,1.03562]
[1749026203582,1.1543,2640.3,2640.0,8.0]
[1749026203783,1.1543,2640.3,2639.6,10.0]
[1749026203976,1.1543,2640.3,2639.9,8.0]
[1749026204172,1.1543,2640.3,2639.7,8.0]
[1749026204483,1.1543,2640.3,2639.5,0.3562]
[1749026204783,1.1543,2640.3,2639.9,8.0]
[1749026205242,1.1543,2640.3,2639.5,0.3562]
[1749026205442,1.1543,2640.3,2639.8,10.0]
[1749026206362,1.1543,2640.3,2639.8,1.8]
[1749026206557,1.1543,2640.3,2639.7,8.0]
[1749026206777,1.1543,2640.3,2639.9,8.0]
[1749026206985,1.1543,2640.3,2639.6,10.0]
[1749026207165,1.1543,2640.3,2639.9,8.0]
[1749026207371,1.1543,2640.3,2639.5,0.3562]
[1749026207577,1.1543,2640.3,2639.7,8.0]
[1749026207877,1.1543,2640.3,2639.5,0.3562]
[1749026208063,1.1543,2640.3,2639.8,10.0]
[1749026208454,1.1543,2640.3,2639.7,8.0]
[1749026208686,1.1543,2640.3,2639.8,10.0]
[1749026208889,1.1543,2640.3,2639.7,8.0]
[1749026208890,1.1543,2640.3,2639.5,0.3562]
[1749026209095,1.1543,2640.3,2639.9,8.0]
[1749026209288,1.1543,2640.3,2639.5,0.3562]
[1749026209458,1.1543,2640.3,2640.0,0.60303]
[1749026209662,1.35213,2640.3,2640.0,0.60303]
[1749026212791,1.35213,2640.3,2640.2,2.77215462]
[1749026213192,1.1543,2640.3,2640.2,10.77215462]
[1749026215182,0.02,2640.9,2640.2,10.77215462]
[1749026215383,1.9807,2640.8,2640.6,2.77215462]
[1749026215805,1.9807,2640.8,2640.4,2.77215462]
[1749026216009,2.18077,2640.8,2640.4,2.77215462]
[1749026216390,1.35677,2640.8,2640.6,10.0]
[1749026216575,2.18077,2640.8,2640.5,6.383264]
[1749026216772,1.9807,2640.8,2640.4,2.77215462]
[1749026217183,1.1321,2640.7,2640.4,2.77215462]
[1749026221097,1.1321,2640.7,2640.3,10.0]
[1749026221422,1.1321,2640.7,2640.0,8.60303]
[1749026221587,1.1321,2640.7,2640.0,0.60303]
[1749026221917,1.1525,2640.5,2640.0,0.60303]
[1749026222079,0.55,2640.4,2640.0,0.60303]
[1749026222280,1.2033,2640.3,2640.0,0.60303]
[1749026225425,0.55,2640.2,2640.0,0.60303]
[1749026225718,1.7135,2640.1,2640.0,0.60303]
[1749026227381,2.5355,2640.1,2640.0,0.60303]
[1749026227582,2.78905,2640.1,2640.0,0.60303]
[1749026230224,1.96705,2640.1,2640.0,0.60303]
[1749026230401,2.78905,2640.1,2640.0,0.60303]
[1749026230923,7.45905,2640.1,2640.0,0.60303]
[1749026232424,0.55,2639.8,2638.9,2.77215462]
[1749026232627,1.1543,2639.7,2638.7,2.77215462]
[1749026233287,1.1513,2639.7,2638.8,8.0]
[1749026234424,1.1513,2639.7,2638.9,2.77215462]
[1749026234589,1.1513,2639.7,2639.0,8.0]
[1749026234787,1.1513,2639.7,2639.3,2.77215462]
[1749026234997,0.822,2639.6,2639.4,8.0]
[1749026235917,1.1513,2639.7,2639.6,8.0]
[1749026236114,1.9733,2639.7,2639.6,8.0]
[1749026237029,1.9733,2639.7,2639.3,2.77215462]
[1749026237201,1.9733,2639.7,2639.4,8.0]
[1749026238196,0.822,2639.6,2639.4,8.0]
[1749026238597,1.1968,2639.5,2639.4,8.0]
[1749026238834,1.1968,2639.5,2639.2,8.0]
[1749026240303,1.1968,2639.5,2639.4,8.0]
[1749026240506,1.1968,2639.5,2639.3,1.15919936]
[1749026240745,1.1632,2639.9,2639.3,2.22299936]
[1749026240903,0.822,2639.8,2639.5,2.77215462]
[1749026243129,0.822,2639.8,2639.0,10.0]
[1749026243445,0.55,2639.6,2638.8,2.77215462]
[1749026243598,0.55,2639.6,2637.9,0.4361344]
[1749026243599,0.55,2639.2,2638.6,2.77215462]
[1749026243801,1.2076,2639.1,2638.4,2.77215462]
[1749026244118,0.822,2639.0,2638.4,3.21489114]
[1749026244334,1.1765,2638.9,2638.4,3.21489114]
[1749026246059,1.1765,2638.9,2638.3,3.36356519]
[1749026246265,1.1765,2638.9,2638.4,8.0]
[1749026246641,1.2214,2638.7,2638.3,3.36356519]
[1749026246858,1.2214,2638.7,2638.3,0.59141057]
[1749026247735,1.2214,2638.7,2638.3,3.36356519]
[1749026251427,1.2214,2638.7,2638.3,0.59141057]
[1749026251860,1.2214,2638.7,2638.2,8.0]
[1749026252460,1.2214,2638.7,2638.4,8.0]
[1749026254476,1.2214,2638.7,2638.5,2.77215462]
[1749026254678,2.0424,2638.7,2638.5,2.77215462]
[1749026257680,0.821,2638.6,2638.5,2.77215462]
[1749026258892,4.631,2639.8,2638.5,2.77215462]
[1749026259091,4.631,2639.8,2638.8,2.77215462]
[1749026259092,1.2625,2639.6,2638.8,2.77215462]
[1749026259253,0.55,2639.5,2638.8,2.77215462]
[1749026259472,1.2625,2639.2,2638.6,2.77215462]
[1749026261318,0.821,2639.1,2638.6,2.77215462]
[1749026261616,0.821,2639.0,2638.6,2.77215462]
[1749026261784,0.821,2638.9,2638.6,2.77215462]
[1749026261979,1.2625,2639.2,2638.6,2.77215462]
[1749026262189,0.821,2639.1,2638.6,2.77215462]
[1749026262672,1.2625,2639.2,2638.6,2.77215462]
[1749026262873,0.821,2639.1,2638.6,2.77215462]
[1749026263805,1.2625,2639.2,2638.8,2.77215462]
[1749026264027,0.821,2639.2,2639.0,2.77215462]
[1749026264228,0.821,2639.3,2639.0,2.77215462]
[1749026264424,0.821,2639.3,2639.2,2.77215462]
[1749026265512,0.821,2639.3,2638.7,10.0]
[1749026265711,1.1482,2639.2,2638.9,8.0]
[1749026266793,1.1482,2639.2,2638.9,10.77215462]
[1749026268517,0.55,2639.1,2638.6,2.77215462]
[1749026268740,1.1412,2639.0,2638.7,8.0]
[1749026268883,1.1412,2639.0,2638.5,8.0]
[1749026269397,1.1412,2639.0,2638.7,8.0]
[1749026270342,1.9622,2639.0,2638.7,8.0]
[1749026272744,1.9622,2639.0,2638.8,2.77215462]
[1749026274200,1.9622,2639.0,2638.7,8.0]
[1749026275254,1.69,2638.9,2638.2,2.77215462]
[1749026275565,1.69,2638.9,2638.3,8.0]
[1749026276321,1.69,2638.9,2638.4,2.77215462]
[1749026276558,1.69,2638.9,2638.5,8.0]
[1749026281067,0.821,2638.8,2638.6,2.77215462]
[1749026282006,0.821,2638.8,2638.5,2.77215462]
[1749026284787,0.82,2638.8,2638.5,2.77215462]
[1749026285011,1.1882,2639.1,2638.7,2.77215462]
[1749026285154,2.0082,2639.3,2639.0,2.77215462]
[1749026285351,0.82,2639.4,2639.2,2.77215462]
[1749026285557,1.1882,2639.8,2639.2,2.77215462]
[1749026285776,1.1882,2639.8,2639.6,2.77215462]
[1749026285989,0.84,2639.9,2639.6,2.77215462]
[1749026286213,1.04282,2639.9,2639.8,2.77215462]
[1749026286355,0.84,2639.9,2639.8,2.77215462]
[1749026286773,0.84,2639.9,2639.6,2.85955462]
[1749026286957,0.02,2639.9,2639.6,2.85955462]
[1749026288008,0.02,2639.9,2639.6,2.77215462]
[1749026291721,0.02,2639.9,2639.8,2.77215462]
[1749026292243,0.02,2639.9,2639.8,10.77215462]
[1749026292854,0.02,2639.9,2639.8,21.93677008]
[1749026293482,0.00213823,2639.9,2639.8,21.93677008]
[1749026295937,0.00213823,2639.9,2639.8,13.52640762]
[1749026296704,0.00213823,2639.9,2639.8,20.85955462]
[1749026297845,0.00213823,2639.9,2639.8,23.63170924]
[1749026298161,0.00213823,2639.9,2639.8,20.85955462]
[1749026298802,0.00213823,2639.9,2639.8,23.63170924]
[1749026299007,0.00213823,2639.9,2639.8,10.704224]
[1749026299240,0.00213823,2639.9,2639.8,13.47637862]
[1749026303146,0.00213823,2639.9,2639.8,4.48458815]
[1749026303571,0.00024789,2639.9,2639.8,4.48458815]
[1749026305248,0.00024789,2639.9,2639.8,2.77215462]
[1749026307313,0.00024789,2639.9,2639.8,12.77215462]
[1749026307513,0.00024789,2639.9,2639.8,14.04937008]
[1749026308484,0.00024789,2639.9,2639.8,22.04937008]
[1749026310875,0.00024789,2639.9,2639.6,2.77215462]
[1749026311367,0.00024789,2639.9,2639.7,8.0]
[1749026311977,0.00024789,2639.9,2639.0,0.44345047]
[1749026311978,0.00024789,2639.9,2639.4,2.77215462]
[1749026312134,1.2159,2639.8,2639.5,8.0]
[1749026313782,1.2159,2639.8,2639.0,0.0385]
[1749026313783,1.2159,2639.8,2639.7,8.0]
[1749026316075,0.00024789,2639.9,2639.7,8.0]
[1749026316303,1.2018,2639.8,2639.5,8.0]
[1749026316463,1.2018,2639.8,2638.0,0.19745339]
[1749026316464,1.2018,2639.8,2639.3,8.0]